Workbook

Sheet CashFlow
B1: 123 North St New Britain
B4: Monthly Operating Income | C4: As Is | D4: Pro Forma
B5: Number of Units | C5: 8 | D5: 8
B6: Average Monthly Rent per Unit | C6: 1205 | D6: 1337
B7: Total Rental Income | C7: =sum(C5*C6) -> 9640 | D7: 10696
B8: % Vacancy and Credit Losses | C8: 0.05 | D8: 0.05
B9: Total Vacancy Loss | C9: =C8*C7 -> 482 | D9: 534.8
B10: Other Monthly Income (laundry, vending, parking, etc.)
B11: Gross Monthly Operating Income | C11: =C7-C9+C10 -> 9158 | D11: 10161.2
B13: Monthly Operating Expenses
B14: Property Management Fees | C14: 482 | D14: =D11*0.05 -> 508.06
B15: Repairs and Maintenance | C15: 482 | D15: =D11*0.05 -> 508.06
B16: Real Estate Taxes | C16: 1419.91 | D16: 1419.91
B17: Rental Property Insurance | C17: 600 | D17: 600
B18: Landscaping | C18: 100 | D18: 100
B19: Cleaning | C19: 200 | D19: 200
B20: Common Utilities
B21: - Water and Sewer | C21: 318.58 | D21: 318.58
B22: - Garbage | C22: 195 | D22: 195
B23: - Electric | C23: 70 | D23: 70
B24: - Heat | C24: 0 | D24: 0
B25: Pest Control
B26: Accounting and Legal
B27: Advertising
B28: Monthly Operating Expenses | C28: =SUM(C14:C27) -> 3867.49 | D28: 3919.61
B30: Net Operating Income (NOI)
B31: Total Annual Operating Income | C31: =C11*12 -> 109896 | D31: 121934.4
B32: Total Annual Operating Expense | C32: =C28*12 -> 46409.88 | D32: 47035.32
B33: Annual Net Operating Income | C33: =C31-C32 -> 63486.12 | D33: 74899.08
B35: Capitalization Rate and Valuation
B36: Desired Capitalization Rate | C36: 0.065 | D36: 0.065
B37: Property Valuation | C37: =IF(C36=0," - ",C33/C36) -> 976709.5385 | D37: 1152293.538
B38: Actual Purchase Price | C38: 950000 | D38: 950000
B39: Actual Capitalization Rate | C39: =IF(C38=0," - ",C33/C38) -> 0.06682749474 | D39: 0.07884113684
B41: Loan Information
B42: Down Payment | C42: =C38*0.25 -> 237500 | D42: 237500 | E42: 25% Down
B43: Loan Amount | C43: =C38-C42 -> 712500 | D43: 712500 | E43: 75% LTV
B44: Acquisition Costs and Loan Fees | C44: =C38*0.0075 -> 7125 | D44: 7125 | E44: .75% of Ask Price
B45: Length of Mortgage (years) | C45: 30 | D45: 30
B46: Annual Interest Rate | C46: 0.06 | D46: 0.06
B47: Initial Investment | C47: =C42+C44 -> 244625 | D47: 244625
B48: Monthly Mortgage Payment (PI) | C48: =IF(C43=0,0,-PMT(C46/12,C45*12,C43)) -> 4271.797492 | D48: 4271.797492
B49: Annual Interest | C49: =IF(C43=0,0,-CUMIPMT(C46/12,C45*12,C43,1,12,0)) -> 42511.98645 | D49: 42511.98645
B50: Annual Principal | C50: =IF(C43=0,0,-CUMPRINC(C46/12,C45*12,C43,1,12,0)) -> 8749.58345 | D50: 8749.58345
B51: Total Annual Debt Service | C51: =C48*12 -> 51261.5699 | D51: 51261.5699
B52: DEBT SERVICE RATIO | C52: =C33/C51 -> 1.23847397 | D52: 1.46111561
B54: Cash Flow and ROI
B55: Total Monthly Cash Flow | C55: =C11-C28-C48 -> 1018.712508 | D55: 1969.792508
B56: Total Annual Cash Flow | C56: =C33-C51 -> 12224.5501 | D56: 23637.5101
B57: Cash on Cash Return (ROI) | C57: =IF(C47=0," ",C56/C47) -> 0.04997261155 | D57: 0.09662753234
B59: Note: This spreadsheet should only be used for informational and educational purposes. Please verify
B60: calculations and seek professional assistance before making financial decisions.

Sheet Rent Roll
A1: Unit Number | B1: Size | C1: Current Rent | D1: Pro Forma | E1: Subsidized | F1: Notes
A2: 1 | B2: 1 Bed | C2: 1050 | D2: 1300
A3: 2 | B3: 1 Bed | C3: 1299 | D3: 1300
A4: 3 | B4: 1 Bed | C4: 1195 | D4: 1300
A5: 4 | B5: 2 Bed | C5: 1299 | D5: 1500
A6: 5 | B6: 1 Bed | C6: 1050 | D6: 1300
A7: 6 | B7: 2 Bed | C7: Vacant | D7: 1500
A8: 7 | B8: 1 Bed | C8: 1075 | D8: 1300
A9: 8 | B9: Commercial | C9: 1050 | D9: 1200
A12: Total | C12: =SUM(C2:C10) -> 8018 | D12: 10700
